fUSD/lending_fUSD_20251006
["ID","MTS","AMOUNT","RATE_DAILY","PERIOD"]
[389596067,1759735733129,-500.0,0.00016438,2]
[389596068,1759735733205,-500.0,0.00016438,2]
[389596069,1759735733284,-3026.73,0.00016438,2]
[389596070,1759735733360,-10914.46,0.00016438,2]
[389596071,1759735733435,-607.65,0.00016438,2]
[389596072,1759735733507,-500.0,0.00016438,2]
[389596073,1759735733581,-500.0,0.00016438,2]
[389596074,1759735733653,-3026.73,0.00016438,2]
[389596075,1759735733729,-10914.46,0.00016438,2]
[389596076,1759735733806,-607.65,0.00016438,2]
[389596077,1759735733880,-371.04186088,0.00016438,2]
[389596078,1759735733954,-500.0,0.00016438,2]
[389596079,1759735734037,-3026.73,0.00016438,2]
[389596080,1759735734111,-10914.46,0.00016438,2]
[389596081,1759735734197,-607.65,0.00016438,2]
[389596082,1759735734273,-500.0,0.00016438,2]
[389596083,1759735734347,-3026.73,0.00016438,2]
[389596084,1759735734419,-10914.46,0.00016438,2]
[389596085,1759735734491,-607.65,0.00016438,2]
[389596086,1759735734566,-500.0,0.00016438,2]
[389596087,1759735734639,-3026.73,0.00016438,2]
[389596088,1759735734718,-607.65,0.00016438,2]
[389596089,1759735734798,-10914.46,0.00016438,2]
[389596090,1759735734876,-300.0,0.00016438,2]
[389596091,1759735734960,-3026.73,0.00016438,2]
[389596092,1759735735048,-607.65,0.00016438,2]
[389596093,1759735735134,-10914.46,0.00016438,2]
[389596094,1759735735228,-607.65,0.00016438,2]
[389596095,1759735735315,-10914.46,0.00016438,2]
[389596096,1759735735397,-3026.73,0.00016438,2]
[389596097,1759735735480,-607.85507639,0.00016438,2]
[389596098,1759735735558,-3026.73,0.00016438,2]
[389596099,1759735735635,-10914.46,0.00016438,2]
[389596100,1759735735725,-3026.73,0.00016438,2]
[389596101,1759735735805,-10914.46,0.00016438,2]
[389596102,1759735735883,-3026.73,0.00016438,2]
[389596103,1759735735962,-10914.4933984,0.00016438,2]
[389596104,1759735736043,-3026.73,0.00016438,2]
[389596105,1759735736124,-3026.73,0.00016438,2]
[389596106,1759735736207,-500.0,0.00016438,2]
[389596107,1759735736282,-572.82,0.00016438,2]
[389596108,1759735736356,-3026.73,0.00016438,2]
[389596109,1759735736426,-500.0,0.00016438,2]
[389596110,1759735736505,-572.82,0.00016438,2]
[389596111,1759735736580,-572.82,0.00016438,2]
[389596112,1759735736654,-3026.73,0.00016438,2]
[389596113,1759735736733,-500.0,0.00016438,2]
[389596114,1759735736815,-3026.73,0.00016438,2]
[389596115,1759735736897,-572.82,0.00016438,2]
[389596116,1759735736984,-365.40355145,0.00016438,2]
[389596117,1759735737064,-1587.14,0.00016438,2]
[389596118,1759735737140,-572.82,0.00016438,2]
[389596119,1759735737222,-3026.73,0.00016438,2]
[389596120,1759735737295,-1587.14,0.00016438,2]
[389596121,1759735737366,-572.82,0.00016438,2]
[389596122,1759735737435,-3026.73,0.00016438,2]
[389596123,1759735737505,-1587.14,0.00016438,2]
[389596124,1759735737577,-3026.73,0.00016438,2]
[389596125,1759735737649,-572.82,0.00016438,2]
[389596126,1759735737721,-1587.14,0.00016438,2]
[389596127,1759735737993,-3026.8736765,0.00016438,2]
[389596128,1759735738084,-572.82,0.00016438,2]
[389596129,1759735738160,-1587.14,0.00016438,2]
[389596130,1759735738238,-572.82,0.00016438,2]
[389596131,1759735738324,-1587.14,0.00016438,2]
[389596132,1759735738406,-572.82,0.00016438,2]
[389596133,1759735738481,-1587.14,0.00016438,2]
[389596134,1759735738553,-500.0,0.00016438,2]
[389596135,1759735738631,-572.82,0.00016438,2]
[389596136,1759735738706,-1587.14,0.00016438,2]
[389596137,1759735738783,-176.25357437,0.00016438,2]
[389596138,1759735738858,-500.0,0.00016438,2]
[389596139,1759735738939,-572.82,0.00016438,2]
[389596140,1759735739013,-1587.14,0.00016438,2]
[389596141,1759735739086,-500.0,0.00016438,2]
[389596142,1759735739155,-1587.14,0.00016438,2]
[389596143,1759735739223,-572.82,0.00016438,2]
[389596144,1759735739290,-215.03500635,0.00016438,2]
[389596145,1759735739360,-1587.14,0.00016438,2]
[389596146,1759735739430,-572.82,0.00016438,2]
[389596147,1759735739508,-1587.14,0.00016438,2]
[389596148,1759735739600,-572.82,0.00016438,2]
[389596149,1759735739681,-1587.14,0.00016438,2]
[389596150,1759735739772,-572.82,0.00016438,2]
[389596151,1759735739848,-500.0,0.00016438,2]
[389596152,1759735739925,-1587.14,0.00016438,2]
[389596153,1759735740006,-572.82,0.00016438,2]
[389596154,1759735740086,-500.0,0.00016438,2]
[389596155,1759735740164,-1587.14,0.00016438,2]
[389596156,1759735740246,-572.82,0.00016438,2]
[389596157,1759735740328,-500.0,0.00016438,2]
[389596158,1759735740408,-1587.14,0.00016438,2]
[389596159,1759735740484,-572.82,0.00016438,2]
[389596160,1759735740558,-500.0,0.00016438,2]
[389596161,1759735740632,-1587.14,0.00016438,2]
[389596162,1759735740707,-572.82,0.00016438,2]
[389596163,1759735740784,-500.0,0.00016438,2]
[389596164,1759735740859,-501.28108351,0.00016438,2]
[389596165,1759735740939,-1587.14,0.00016438,2]
[389596166,1759735741018,-500.0,0.00016438,2]
[389596167,1759735741099,-1587.14,0.00016438,2]
[389596168,1759735741175,-500.0,0.00016438,2]
[389596169,1759735741253,-1587.14,0.00016438,2]
[389596170,1759735741331,-572.82,0.00016438,2]
[389596171,1759735741405,-187.48239152,0.00016438,2]
[389596172,1759735744449,-159.68885,0.0001487,2]
[389596173,1759735744471,-151.0,0.00015,2]
[389596174,1759735744491,-151.0,0.00015,2]
[389596175,1759735744512,-152.569389,0.00015,2]
[389596176,1759735744534,-159.68886,0.0001512,2]
[389596177,1759735744556,-159.68885,0.0001537,2]
[389596178,1759735744578,-159.68885,0.0001562,2]
[389596179,1759735744600,-159.68886,0.0001587,2]
[389596180,1759735744623,-1399.65760848,0.00016438,2]
[389596181,1759735744645,-572.82,0.00016438,2]
[389596182,1759735744667,-1553.38428512,0.00016438,2]
[389596184,1759735800999,-311.82963749,0.00013049,2]
[389596185,1759735801027,-4326.23516371,0.0001305,2]
[389596186,1759735801057,-3229.56567015,0.00014208,2]
[389596187,1759735801365,-182.61217978,0.00014799,2]
[389596188,1759735801395,-268.14430577,0.00014799,2]
[389596189,1759735801422,-311738.71598684,0.000148,2]
[389596190,1759735801450,-488486.25126741,0.00015,2]
[389596191,1759735801516,300.0,0.00014799,2]
[389596192,1759735819043,160.0,0.00028767,120]
[389596193,1759735819599,160.0,0.00028767,120]
[389596194,1759735819935,154.0,0.00028767,120]
[389596195,1759735820167,160.0,0.00028767,120]
[389596196,1759735820619,154.0,0.00028767,120]
[389596197,1759735821156,154.0,0.00028767,120]
[389596198,1759735821665,154.0,0.00028767,120]
[389596199,1759735822585,154.0,0.00028767,120]
[389596200,1759735822775,158.28188971,0.00028767,120]
[389596201,1759735823276,156.0,0.00028767,120]
[389596202,1759735823349,154.0,0.00028767,120]
[389596203,1759735823871,156.0,0.00028767,120]
[389596204,1759735824407,156.0,0.00028767,120]
[389596205,1759735825615,156.0,0.00028767,120]
[389596206,1759735826311,156.0,0.00028767,120]
[389596207,1759735826871,156.0,0.00028767,120]
[389596208,1759735827387,156.0,0.00028767,120]
[389596209,1759735827934,156.0,0.00028767,120]
[389596210,1759735828457,156.0,0.00028767,120]
[389596211,1759735828993,156.0,0.00028767,120]
[389596212,1759735829535,156.0,0.00028767,120]
[389596213,1759735830052,156.0,0.00028767,120]
[389596214,1759735830917,160.69948997,0.00028767,120]
[389596215,1759735831465,156.0,0.00028767,120]
[389596216,1759735832024,156.0,0.00028767,120]
[389596217,1759735832073,-150.2,0.00015579,2]
[389596220,1759735832105,-2046.0,0.00015579,2]
[389596224,1759735832135,-3401.0,0.00015579,2]
[389596225,1759735832166,-4117.0,0.00015579,2]
[389596226,1759735832197,-3072.0,0.00015644,2]
[389596231,1759735832226,-436.87,0.00015644,2]
[389596234,1759735832256,-151.75,0.00015644,2]
[389596235,1759735832286,-443.91,0.00015644,2]
[389596236,1759735832321,-370.68887098,0.00015702,2]
[389596238,1759735832351,-150.11,0.00015702,2]
[389596239,1759735832379,-301.81,0.00015725,2]
[389596240,1759735832410,-428.16,0.00015755,2]
[389596241,1759735832438,-429.85,0.00015755,2]
[389596242,1759735832470,-1197.55,0.0001579,2]
[389596243,1759735832500,-337.05,0.0001579,2]
[389596244,1759735832527,-250.0,0.00015902,2]
[389596245,1759735832554,-807.65,0.00015994,2]
[389596246,1759735832581,-474.0,0.00015994,2]
[389596247,1759735832610,-187.70101404,0.00015999,2]
[389596248,1759735832638,-866.66,0.00016,2]
[389596249,1759735832666,-474.0,0.00016,2]
[389596253,1759735832744,-420.0,0.000162,2]
[389596254,1759735832754,-173.59505012,0.00016338,2]
[389596255,1759735832764,-199.70346802,0.00016338,2]
[389596256,1759735832773,-163.19995037,0.00016338,2]
[389596257,1759735832782,-740.7757867,0.00016338,2]
[389596258,1759735832795,-480.75362438,0.00016338,2]
[389596259,1759735832804,-5000.0,0.00016338,2]
[389596260,1759735832817,-256.86012874,0.00016388,2]
[389596261,1759735832827,-1221.52941105,0.00016432,2]
[389596263,1759735832836,-480.0,0.00016437,2]
[389596265,1759735832845,-456.0,0.00016437,2]
[389596266,1759735832855,-500.0,0.00016438,2]
[389596267,1759735832864,-273.15570249,0.00016438,2]
[389596268,1759735832874,-500.0,0.00016438,2]
[389596270,1759735832884,-500.0,0.00016438,2]
[389596272,1759735832899,-500.0,0.00016438,2]
[389596274,1759735832909,-500.0,0.00016438,2]
[389596276,1759735832919,-500.0,0.00016438,2]
[389596277,1759735832929,-228.89371893,0.00016438,2]
[389596278,1759735832955,-271.10628107,0.00016438,2]
[389596279,1759735832965,-503.9664983,0.00016438,2]
[389596280,1759735832975,-500.0,0.00016438,2]
[389596281,1759735832985,-96.58722063,0.00016438,2]
[389596282,1759735832998,-403.41277937,0.00016438,2]
[389596283,1759735833008,-261.56601745,0.00016438,2]
[389596284,1759735833021,-238.43398255,0.00016438,2]
[389596285,1759735833031,-500.0,0.00016438,2]
[389596286,1759735833042,-500.0,0.00016438,2]
[389596287,1759735833055,-500.0,0.00016438,2]
[389596288,1759735833065,-43.85392616,0.00016438,2]
[389596289,1759735833081,-456.14607384,0.00016438,2]
[389596290,1759735833091,-500.0,0.00016438,2]
[389596291,1759735833101,-500.0,0.00016438,2]
[389596292,1759735833110,-500.0,0.00016438,2]
[389596293,1759735833122,-500.0,0.00016438,2]
[389596294,1759735833131,-500.0,0.00016438,2]
[389596295,1759735833140,-500.0,0.00016438,2]
[389596296,1759735833150,-341.20850194,0.00016438,2]
[389596297,1759735833168,-158.00373791,0.00016438,2]
[389596298,1759735833179,-500.0,0.00016438,2]
[389596299,1759735833190,-446.20782594,0.00016438,2]
[389596300,1759735833238,300.12,0.00015579,2]
[389596301,1759735833287,-165.14135737,0.00016438,2]
[389596302,1759735833296,-500.0,0.00016438,2]
[389596303,1759735833306,-549.34070422,0.00016438,2]
[389596304,1759735833320,-56.47404128,0.00016438,2]
[389596305,1759735833330,-311.62221411,0.00016438,2]
[389596306,1759735833339,-996.42,0.00016438,2]
[389596307,1759735833348,-996.42,0.00016438,2]
[389596308,1759735833357,-996.42,0.00016438,2]
[389596309,1759735833366,-500.0,0.00016438,2]
[389596310,1759735833376,-996.42,0.00016438,2]
[389596311,1759735833386,-500.0,0.00016438,2]
[389596312,1759735833395,-452.10982547,0.00016438,2]
[389596313,1759735833405,-500.0,0.00016438,2]
[389596314,1759735833414,-500.0,0.00016438,2]
[389596315,1759735833424,-457.78345434,0.00016438,2]
[389596316,1759735833433,-996.42,0.00016438,2]
[389596317,1759735833444,-996.42,0.00016438,2]
[389596318,1759735833454,-996.42,0.00016438,2]
[389596319,1759735833463,-996.42,0.00016438,2]
[389596320,1759735833472,-996.42,0.00016438,2]
[389596321,1759735833482,-996.42,0.00016438,2]
[389596322,1759735833780,-996.42,0.00016438,2]
[389596323,1759735833798,-549.28798551,0.00016438,2]
[389596324,1759735833811,-447.13201449,0.00016438,2]
[389596325,1759735833820,-996.42,0.00016438,2]
[389596326,1759735833830,-996.42,0.00016438,2]
[389596327,1759735833839,-996.42,0.00016438,2]
[389596328,1759735833849,-996.42,0.00016438,2]
[389596329,1759735833859,-996.42,0.00016438,2]
[389596330,1759735833873,-996.42,0.00016438,2]
[389596331,1759735833884,-996.42,0.00016438,2]
[389596332,1759735833897,-500.0,0.00016438,2]
[389596333,1759735833906,-996.42,0.00016438,2]
[389596334,1759735833915,-503.53854474,0.00016438,2]
[389596335,1759735833925,-996.42,0.00016438,2]
[389596336,1759735833936,-996.42,0.00016438,2]
[389596337,1759735833945,-996.42,0.00016438,2]
[389596338,1759735833955,-996.44102941,0.00016438,2]
[389596339,1759735833965,-4158.92,0.00016438,2]
[389596340,1759735833975,-4158.92,0.00016438,2]
[389596341,1759735833984,-4158.92,0.00016438,2]
[389596342,1759735833993,-4158.92,0.00016438,2]
[389596343,1759735834002,-4158.92,0.00016438,2]
[389596344,1759735834012,-4158.92,0.00016438,2]
[389596345,1759735834023,-4158.92,0.00016438,2]
[389596346,1759735834032,-4158.92,0.00016438,2]
[389596347,1759735834041,-4158.92,0.00016438,2]
[389596348,1759735834051,-4158.92,0.00016438,2]
[389596349,1759735834061,-4158.92,0.00016438,2]
[389596350,1759735834071,-4158.92,0.00016438,2]
[389596351,1759735834080,-500.0,0.00016438,2]
[389596352,1759735834090,-4158.92,0.00016438,2]
[389596353,1759735834099,-500.0,0.00016438,2]
[389596354,1759735834109,-245.41536289,0.00016438,2]
[389596355,1759735834121,-4158.92,0.00016438,2]
[389596356,1759735834130,-6261.47,0.00016438,2]
[389596357,1759735834140,-6261.47,0.00016438,2]
[389596358,1759735834150,-4158.92,0.00016438,2]
[389596359,1759735834159,-6261.47,0.00016438,2]
[389596360,1759735834169,-4158.92,0.00016438,2]
[389596361,1759735834180,-6261.47,0.00016438,2]
[389596362,1759735834190,-4158.92,0.00016438,2]
[389596363,1759735834200,-6261.47,0.00016438,2]
[389596364,1759735834210,-4158.92,0.00016438,2]
[389596365,1759735834221,-6261.47,0.00016438,2]
[389596366,1759735834232,-4158.92,0.00016438,2]
[389596367,1759735834241,-500.0,0.00016438,2]
[389596368,1759735834253,-6261.47,0.00016438,2]
[389596369,1759735834263,-4158.92,0.00016438,2]
[389596370,1759735834274,-500.0,0.00016438,2]
[389596371,1759735834283,-4158.92,0.00016438,2]
[389596372,1759735834294,-6261.47,0.00016438,2]
[389596373,1759735834304,-500.0,0.00016438,2]
[389596374,1759735834314,-4158.92,0.00016438,2]
[389596375,1759735834323,-6261.47,0.00016438,2]
[389596376,1759735834333,-403.9785009,0.00016438,2]
[389596377,1759735834344,-4158.92,0.00016438,2]
[389596378,1759735834354,-6261.47,0.00016438,2]
[389596379,1759735834363,-4158.97504527,0.00016438,2]
[389596380,1759735834371,-6261.47,0.00016438,2]
[389596381,1759735834380,-6261.47,0.00016438,2]
[389596382,1759735834391,-2304.18800853,0.00016438,2]
[389596383,1759735834590,-3957.28199147,0.00016438,2]
[389596384,1759735834600,-6261.47,0.00016438,2]
[389596385,1759735834609,-6261.47,0.00016438,2]
[389596386,1759735834618,-6261.47,0.00016438,2]
[389596387,1759735834627,-500.0,0.00016438,2]
[389596388,1759735834636,-6261.47,0.00016438,2]
[389596389,1759735834645,-500.0,0.00016438,2]
[389596390,1759735834655,-6028.22405643,0.00016438,2]
[389596391,1759735834667,-233.24594357,0.00016438,2]
[389596392,1759735834676,-500.0,0.00016438,2]
[389596393,1759735834686,-6261.47,0.00016438,2]
[389596394,1759735834695,-500.0,0.00016438,2]
[389596395,1759735834704,-6261.47,0.00016438,2]
[389596396,1759735834713,-330.02838172,0.00016438,2]
[389596397,1759735834722,-6261.47,0.00016438,2]
[389596398,1759735834732,-3470.44786111,0.00016438,2]
[389596399,1759735834785,441.4,0.00015579,2]
[389596400,1759735834822,151.51,0.00015579,2]
[389596401,1759735834984,810.0,0.00015579,2]
[389596402,1759735835756,156.0,0.00028767,120]
[389596403,1759735836273,156.0,0.00028767,120]
[389596404,1759735836899,156.0,0.00028767,120]
[389596405,1759735837439,156.0,0.00028767,120]
[389596406,1759735837971,156.0,0.00028767,120]
[389596412,1759735838235,-500.0,0.00016438,2]
[389596413,1759735838245,-93.41340116,0.00016438,2]
[389596414,1759735838256,-406.58659884,0.00016438,2]
[389596415,1759735838265,-500.0,0.00016438,2]
[389596416,1759735838274,-500.0,0.00016438,2]
[389596417,1759735838283,-500.0,0.00016438,2]
[389596418,1759735838293,-500.0,0.00016438,2]
[389596419,1759735838302,-500.0,0.00016438,2]
[389596420,1759735838312,-500.0,0.00016438,2]
[389596421,1759735838321,-500.0,0.00016438,2]
[389596422,1759735838330,-500.0,0.00016438,2]
[389596423,1759735838339,-594.52515415,0.00016438,2]
[389596424,1759735838348,-500.0,0.00016438,2]
[389596425,1759735838357,-500.0,0.00016438,2]
[389596426,1759735838366,-3376.54,0.00016438,2]
[389596427,1759735838376,-500.0,0.00016438,2]
[389596428,1759735838385,-3376.54,0.00016438,2]
[389596429,1759735838394,-500.0,0.00016438,2]
[389596430,1759735838403,-3376.54,0.00016438,2]
[389596431,1759735838412,-500.0,0.00016438,2]
[389596432,1759735838422,-3376.54,0.00016438,2]
[389596433,1759735838431,-500.0,0.00016438,2]
[389596434,1759735838441,-3376.54,0.00016438,2]
[389596435,1759735838450,-500.0,0.00016438,2]
[389596436,1759735838459,-3376.54,0.00016438,2]
[389596437,1759735838470,-500.0,0.00016438,2]
[389596438,1759735838479,-3376.54,0.00016438,2]
[389596439,1759735838488,-500.0,0.00016438,2]
[389596440,1759735838498,-500.0,0.00016438,2]
[389596441,1759735838507,-500.0,0.00016438,2]
[389596442,1759735838516,-500.0,0.00016438,2]
[389596443,1759735838526,-3376.54,0.00016438,2]
[389596444,1759735838535,-500.0,0.00016438,2]
[389596445,1759735838544,-3376.54,0.00016438,2]
[389596446,1759735838553,-500.0,0.00016438,2]
[389596447,1759735838562,-500.0,0.00016438,2]
[389596448,1759735838572,-3376.54,0.00016438,2]
[389596449,1759735838582,-500.0,0.00016438,2]
[389596450,1759735838591,-607.10941488,0.00016438,2]
[389596451,1759735838600,-2822.57764287,0.00016438,2]
[389596452,1759735838614,-553.96235713,0.00016438,2]
[389596453,1759735838625,-65.51186525,0.00016438,2]
[389596454,1759735838641,-363.98,0.00016438,2]
[389596455,1759735838671,-2947.04813475,0.00016438,2]
[389596456,1759735838681,-500.0,0.00016438,2]
[389596457,1759735838690,-3376.54,0.00016438,2]
[389596458,1759735838699,-500.0,0.00016438,2]
[389596459,1759735838708,-3376.54,0.00016438,2]
[389596460,1759735838718,-500.0,0.00016438,2]
[389596461,1759735838728,-3376.54,0.00016438,2]
[389596462,1759735838737,-500.0,0.00016438,2]
[389596463,1759735838747,-500.0,0.00016438,2]
[389596464,1759735838756,-3376.54,0.00016438,2]
[389596465,1759735838765,-500.0,0.00016438,2]
[389596466,1759735838775,-500.0,0.00016438,2]
[389596467,1759735838784,-3376.54,0.00016438,2]
[389596468,1759735838794,-500.0,0.00016438,2]
[389596469,1759735838803,-278.23,0.00016438,2]
[389596470,1759735838813,-1354.38325965,0.00016438,2]
[389596471,1759735838849,431.21,0.00015579,2]
[389596472,1759735838889,152.82,0.00015579,2]
[389596473,1759735839712,150.79,0.00015579,2]
[389596477,1759735840225,-437.75063788,0.00016338,2]
[389596478,1759735840236,-2022.15674035,0.00016438,2]
[389596479,1759735840246,-500.0,0.00016438,2]
[389596480,1759735840256,-501.8198643,0.00016438,2]
[389596481,1759735840265,-1668.22247245,0.00016438,2]
[389596482,1759735840276,-399.07387676,0.00016438,2]
[389596483,1759735840287,-1309.24365079,0.00016438,2]
[389596484,1759735840298,-500.0,0.00016438,2]
[389596485,1759735840308,-3376.54,0.00016438,2]
[389596486,1759735840317,-566.11,0.00016438,2]
[389596487,1759735840327,-418.35634921,0.00016438,2]
[389596488,1759735840339,-518.96155935,0.00016438,2]
[389596489,1759735840351,-281.66076,0.00016438,2]
[389596490,1759735840369,-1190.82612164,0.00016438,2]
[389596491,1759735840381,-966.7352098,0.00016438,2]
[389596492,1759735840390,-1851.74698126,0.00016438,2]
[389596493,1759735840401,-1524.79301874,0.00016438,2]
[389596494,1759735840410,-2032.98323825,0.00016438,2]
[389596495,1759735840422,-500.0,0.00016438,2]
[389596496,1759735840433,-843.55676175,0.00016438,2]
[389596497,1759735840442,-3376.72092625,0.00016438,2]
[389596498,1759735840452,-500.0,0.00016438,2]
[389596499,1759735840461,-500.0,0.00016438,2]
[389596500,1759735840471,-501.26594254,0.00016438,2]
[389596501,1759735840480,-500.0,0.00016438,2]
[389596502,1759735840489,-500.0,0.00016438,2]
[389596503,1759735840499,-500.0,0.00016438,2]
[389596504,1759735840508,-500.0,0.00016438,2]
[389596505,1759735840518,-501.39009659,0.00016438,2]
[389596506,1759735840527,-1238.77,0.00016438,2]
[389596507,1759735840536,-3396.04220422,0.00016438,2]
[389596508,1759735840548,-302.17412442,0.00016438,2]
[389596509,1759735840561,-502.29884863,0.00016438,2]
[389596510,1759735840583,-1872.96482273,0.00016438,2]
[389596511,1759735840592,-285.98623921,0.00016438,2]
[389596512,1759735840603,-547.03466666,0.00016438,2]
[389596513,1759735840614,-405.74909413,0.00016438,2]
[389596514,1759735840623,-6073.48,0.00016438,2]
[389596515,1759735840632,-1238.77,0.00016438,2]
[389596516,1759735840641,-500.0,0.00016438,2]
[389596517,1759735840650,-6073.48,0.00016438,2]
[389596518,1759735840659,-1238.77,0.00016438,2]
[389596519,1759735840668,-500.0,0.00016438,2]
[389596520,1759735840677,-641.02598995,0.00016438,2]
[389596521,1759735840688,-1999.48183093,0.00016438,2]
[389596522,1759735840699,-3156.18049084,0.00016438,2]
[389596523,1759735840716,-276.79168828,0.00016438,2]
[389596524,1759735840725,-26.36102896,0.00016438,2]
[389596554,1759735841001,1265.0,0.00015579,2]
[389596594,1759735845123,-1000.0,0.000162,2]
[389596595,1759735845133,-483.34323667,0.00016438,2]
[389596596,1759735845142,-1238.77,0.00016438,2]
[389596597,1759735845151,-6073.48,0.00016438,2]
[389596598,1759735845160,-1238.77,0.00016438,2]
[389596599,1759735845169,-48.33746359,0.00016438,2]
[389596600,1759735845208,-6025.14253641,0.00016438,2]
[389596601,1759735845218,-1238.77,0.00016438,2]
[389596602,1759735845227,-6073.48,0.00016438,2]
[389596603,1759735845236,-1238.77,0.00016438,2]
[389596604,1759735845246,-6073.48,0.00016438,2]
[389596605,1759735845255,-6073.48,0.00016438,2]
[389596606,1759735845264,-1238.77,0.00016438,2]
[389596607,1759735845273,-6073.48,0.00016438,2]
[389596608,1759735845282,-1238.77,0.00016438,2]
[389596609,1759735845292,-6073.48,0.00016438,2]
[389596610,1759735845302,-1238.77,0.00016438,2]
[389596611,1759735845311,-6073.48,0.00016438,2]
[389596612,1759735845321,-1238.77,0.00016438,2]
[389596613,1759735845330,-6073.48,0.00016438,2]
[389596614,1759735845339,-1238.77,0.00016438,2]
[389596615,1759735845349,-6073.48,0.00016438,2]
[389596616,1759735845358,-1238.77,0.00016438,2]
[389596617,1759735845368,-6073.48,0.00016438,2]
[389596618,1759735845377,-1238.77,0.00016438,2]
[389596619,1759735845386,-6073.48,0.00016438,2]
[389596620,1759735845396,-1238.77,0.00016438,2]
[389596621,1759735845405,-6073.48,0.00016438,2]
[389596622,1759735845414,-1238.77,0.00016438,2]
[389596623,1759735845423,-6073.48,0.00016438,2]
[389596624,1759735845433,-1238.77,0.00016438,2]
[389596625,1759735845442,-6073.48,0.00016438,2]
[389596626,1759735845451,-6073.48,0.00016438,2]
[389596627,1759735845460,-6073.48,0.00016438,2]
[389596628,1759735845469,-6073.48,0.00016438,2]
[389596629,1759735845479,-6073.48,0.00016438,2]
[389596630,1759735845489,-6073.56655185,0.00016438,2]
[389596631,1759735845499,-1238.77,0.00016438,2]
[389596632,1759735845510,-1238.77,0.00016438,2]
[389596633,1759735845519,-1238.77,0.00016438,2]
[389596634,1759735845528,-1238.77,0.00016438,2]
[389596635,1759735845537,-1238.77,0.00016438,2]
[389596636,1759735845547,-1239.0009181,0.00016438,2]
[389596637,1759735845555,-3434.94,0.00016438,2]
[389596639,1759735845565,-3434.94,0.00016438,2]
[389596640,1759735845574,-3434.94,0.00016438,2]
[389596642,1759735845584,-3434.94,0.00016438,2]
[389596643,1759735845593,-3434.94,0.00016438,2]
[389596644,1759735845602,-3434.94,0.00016438,2]
[389596645,1759735845611,-3434.94,0.00016438,2]
[389596646,1759735845619,-3434.94,0.00016438,2]
[389596647,1759735845628,-3434.94,0.00016438,2]
[389596648,1759735845637,-3434.94,0.00016438,2]
[389596649,1759735845647,-3434.94,0.00016438,2]
[389596650,1759735845656,-500.0,0.00016438,2]
[389596651,1759735845669,-3434.94,0.00016438,2]
[389596652,1759735845679,-283.06371623,0.00016438,2]
[389596653,1759735845688,-3434.94,0.00016438,2]
[389596654,1759735845696,-3434.94,0.00016438,2]
[389596655,1759735845706,-3434.94,0.00016438,2]
[389596656,1759735845715,-3434.94,0.00016438,2]
[389596657,1759735845724,-3434.94,0.00016438,2]
[389596658,1759735845733,-3434.94,0.00016438,2]
[389596659,1759735845743,-500.0,0.00016438,2]
[389596660,1759735845752,-3434.94,0.00016438,2]
[389596661,1759735845760,-500.0,0.00016438,2]
[389596662,1759735845770,-3434.94,0.00016438,2]
[389596663,1759735845779,-500.0,0.00016438,2]
[389596664,1759735845790,-3434.94,0.00016438,2]
[389596665,1759735845799,-500.0,0.00016438,2]
[389596666,1759735845808,-3434.94,0.00016438,2]